fUSD/lending_fUSD_20250111
["ID","MTS","AMOUNT","RATE_DAILY","PERIOD"]
[348555401,1736617869144,-500.0,0.00011364,2]
[348555402,1736617869154,-500.0,0.00011364,2]
[348555403,1736617869164,-500.0,0.00011364,2]
[348555404,1736617869174,-500.0,0.00011364,2]
[348555405,1736617869183,-500.0,0.00011364,2]
[348555406,1736617869193,-500.0,0.00011364,2]
[348555407,1736617869204,-2193.11,0.00011364,2]
[348555408,1736617869213,-500.0,0.00011364,2]
[348555409,1736617869222,-500.0,0.00011364,2]
[348555410,1736617869232,-532.48,0.00011364,2]
[348555411,1736617869241,-500.0,0.00011364,2]
[348555412,1736617869250,-500.0,0.00011364,2]
[348555413,1736617869260,-500.0,0.00011364,2]
[348555414,1736617869270,-500.0,0.00011364,2]
[348555415,1736617869280,-883.7,0.00011364,2]
[348555416,1736617869289,-500.0,0.00011364,2]
[348555417,1736617869298,-500.0,0.00011364,2]
[348555418,1736617869308,-541.62,0.00011364,2]
[348555419,1736617869317,-500.0,0.00011364,2]
[348555420,1736617869326,-500.0,0.00011364,2]
[348555421,1736617869335,-584.87,0.00011364,2]
[348555422,1736617869345,-787.73,0.00011364,2]
[348555423,1736617869354,-500.0,0.00011364,2]
[348555424,1736617869363,-2678.35,0.00011364,2]
[348555425,1736617869371,-500.0,0.00011364,2]
[348555426,1736617869380,-500.0,0.00011364,2]
[348555427,1736617869389,-500.0,0.00011364,2]
[348555428,1736617869398,-721.21,0.00011364,2]
[348555429,1736617869408,-500.0,0.00011364,2]
[348555430,1736617869418,-500.0,0.00011364,2]
[348555431,1736617869427,-500.0,0.00011364,2]
[348555432,1736617869436,-1164.85,0.00011364,2]
[348555433,1736617869446,-500.0,0.00011364,2]
[348555434,1736617869455,-2484.04,0.00011364,2]
[348555435,1736617869464,-500.0,0.00011364,2]
[348555436,1736617869474,-500.0,0.00011364,2]
[348555437,1736617869483,-500.0,0.00011364,2]
[348555438,1736617869493,-500.0,0.00011364,2]
[348555439,1736617869502,-500.0,0.00011364,2]
[348555440,1736617869512,-500.0,0.00011364,2]
[348555441,1736617869521,-500.0,0.00011364,2]
[348555442,1736617869530,-500.0,0.00011364,2]
[348555443,1736617869540,-500.0,0.00011364,2]
[348555444,1736617869549,-1265.58,0.00011364,2]
[348555445,1736617869558,-500.0,0.00011364,2]
[348555446,1736617869567,-500.0,0.00011364,2]
[348555447,1736617869576,-500.0,0.00011364,2]
[348555448,1736617869585,-500.0,0.00011364,2]
[348555449,1736617869594,-500.0,0.00011364,2]
[348555450,1736617869603,-500.0,0.00011364,2]
[348555451,1736617869612,-522.55,0.00011364,2]
[348555452,1736617869621,-300.0,0.00011364,2]
[348555453,1736617869630,-300.0,0.00011364,2]
[348555454,1736617869640,-300.0,0.00011364,2]
[348555455,1736617869649,-500.0,0.00011364,2]
[348555456,1736617869658,-500.0,0.00011364,2]
[348555457,1736617869667,-1332.14,0.00011364,2]
[348555458,1736617869676,-500.0,0.00011364,2]
[348555459,1736617869685,-500.0,0.00011364,2]
[348555460,1736617869694,-1828.59,0.00011364,2]
[348555461,1736617869704,-500.0,0.00011364,2]
[348555462,1736617869713,-500.0,0.00011364,2]
[348555463,1736617869722,-669.53150814,0.00011365,2]
[348555464,1736617869731,-794.39,0.00011365,2]
[348555465,1736617869740,-1588.56,0.00011365,2]
[348555466,1736617869749,-1533.66,0.00011365,2]
[348555467,1736617869758,-1955.89,0.00011365,2]
[348555468,1736617869767,-1464.39,0.00011365,2]
[348555469,1736617869777,-500.0,0.00011365,2]
[348555470,1736617869786,-3508.34,0.00011365,2]
[348555471,1736617869795,-768.66,0.00011365,2]
[348555472,1736617869804,-3000.0,0.00011365,2]
[348555473,1736617869814,-1505.1,0.00011365,2]
[348555474,1736617869823,-1774.67,0.00011365,2]
[348555475,1736617869832,-947.84,0.00011365,2]
[348555476,1736617869842,-2918.92,0.00011365,2]
[348555477,1736617869851,-556.19,0.00011365,2]
[348555478,1736617869861,-748.0,0.00011365,2]
[348555479,1736617869871,-1143.27,0.00011365,2]
[348555480,1736617869881,-1833.81,0.00011365,2]
[348555481,1736617869890,-1344.8,0.00011365,2]
[348555482,1736617869900,-300.0,0.00011365,2]
[348555483,1736617869909,-300.0,0.00011365,2]
[348555484,1736617869919,-300.0,0.00011365,2]
[348555485,1736617869928,-1225.11,0.00011365,2]
[348555486,1736617869937,-1479.59,0.00011365,2]
[348555487,1736617869946,-881.25,0.00011365,2]
[348555488,1736617869956,-879.29,0.00011365,2]
[348555489,1736617869965,-4216.48,0.00011365,2]
[348555490,1736617869974,-834.74,0.00011366,2]
[348555491,1736617869983,-300.0,0.00011366,2]
[348555492,1736617869992,-300.0,0.00011366,2]
[348555493,1736617870002,-300.0,0.00011366,2]
[348555494,1736617870011,-500.0,0.00011367,2]
[348555495,1736617870020,-500.0,0.00011367,2]
[348555496,1736617870029,-500.0,0.00011367,2]
[348555497,1736617870038,-500.0,0.00011367,2]
[348555498,1736617870048,-1192.98,0.00011367,2]
[348555499,1736617870060,-1688.61,0.00011367,2]
[348555500,1736617870069,-4399.8,0.00011367,2]
[348555501,1736617870078,-300.0,0.00011367,2]
[348555502,1736617870087,-300.0,0.00011367,2]
[348555503,1736617870096,-300.0,0.00011367,2]
[348555504,1736617870106,-9791.25,0.00011368,2]
[348555505,1736617870115,-1343.32,0.00011368,2]
[348555506,1736617870127,-500.0,0.00011368,2]
[348555507,1736617870136,-532.5,0.00011368,2]
[348555508,1736617870146,-2331.26,0.00011368,2]
[348555509,1736617870156,-500.0,0.00011368,2]
[348555510,1736617870167,-500.0,0.00011368,2]
[348555511,1736617870175,-971.27,0.00011368,2]
[348555512,1736617870184,-1299.71,0.00011368,2]
[348555513,1736617870195,-768.47,0.00011368,2]
[348555514,1736617870204,-2058.17,0.00011368,2]
[348555515,1736617870213,-1598.16,0.00011368,2]
[348555516,1736617870222,-734.03389695,0.00011383,2]
[348555517,1736617870231,-200.0,0.000114,2]
[348555518,1736617870240,-600.0,0.000114,4]
[348555519,1736617870248,-150.0,0.00011414,2]
[348555520,1736617870257,-418.63,0.00011425,2]
[348555521,1736617870266,-177.894438,0.00011442,2]
[348555522,1736617870275,-734.03389695,0.00011452,2]
[348555523,1736617870285,-217.0,0.0001148,2]
[348555524,1736617870294,-204.0,0.0001148,2]
[348555525,1736617870303,-2015.0,0.0001149,2]
[348555526,1736617870312,-1268.0,0.0001149,2]
[348555527,1736617870321,-368.069,0.0001149,2]
[348555528,1736617870331,-566.0,0.0001149,2]
[348555529,1736617870340,-1861.0,0.0001149,2]
[348555530,1736617870349,-1259.0,0.0001149,2]
[348555531,1736617870359,-921.717,0.0001149,2]
[348555532,1736617870368,-2944.0,0.0001149,2]
[348555533,1736617870378,-820.0,0.0001149,2]
[348555534,1736617870388,-537.0,0.0001149,2]
[348555535,1736617870398,-3978.0,0.0001149,2]
[348555536,1736617870407,-150.0,0.0001149,2]
[348555537,1736617870418,-160.285,0.0001149,2]
[348555538,1736617870428,-3896.0,0.0001149,2]
[348555539,1736617870438,-229.0,0.0001149,2]
[348555540,1736617870449,-168.0,0.0001149,2]
[348555541,1736617870458,-150.0,0.0001149,2]
[348555542,1736617870467,-200.0,0.0001149,2]
[348555543,1736617870477,-157.429,0.0001149,2]
[348555544,1736617870488,-150.0,0.0001149,2]
[348555545,1736617870498,-154.749,0.0001149,2]
[348555546,1736617870509,-9622.0,0.0001149,2]
[348555547,1736617870518,-1270.947,0.0001149,2]
[348555548,1736617870527,-150.0,0.0001149,2]
[348555549,1736617870537,-1707.12733225,0.000115,2]
[348555550,1736617870546,-600.0,0.000115,4]
[348555551,1736617870555,-2751.0,0.00011507,2]
[348555552,1736617870565,-150.0,0.00011514,2]
[348555553,1736617870575,-734.03389695,0.00011521,2]
[348555554,1736617870584,-150.0,0.00011571,2]
[348555555,1736617870594,-177.894438,0.00011582,2]
[348555556,1736617870603,-150.0,0.00011585,2]
[348555557,1736617870613,-734.03389695,0.0001159,2]
[348555558,1736617870622,-600.0,0.000116,4]
[348555559,1736617870634,-189.5494424,0.00011614,2]
[348555560,1736617870645,-2656.1723268,0.0001163,2]
[348555561,1736617870654,-9911.9746021,0.0001163,2]
[348555562,1736617870664,-500.0,0.00011637,2]
[348555563,1736617870673,-500.0,0.00011637,2]
[348555564,1736617870682,-500.0,0.00011637,2]
[348555565,1736617870691,-613.82,0.00011637,2]
[348555566,1736617870701,-500.0,0.00011637,2]
[348555567,1736617870711,-500.0,0.00011637,2]
[348555568,1736617870720,-500.0,0.00011637,2]
[348555569,1736617870729,-500.0,0.00011637,2]
[348555570,1736617870739,-500.0,0.00011637,2]
[348555571,1736617870749,-500.0,0.00011637,2]
[348555572,1736617870758,-523.14,0.00011637,2]
[348555573,1736617870768,-500.0,0.00011637,2]
[348555574,1736617870777,-500.0,0.00011637,2]
[348555575,1736617870787,-500.0,0.00011637,2]
[348555576,1736617870796,-500.0,0.00011637,2]
[348555577,1736617870806,-500.0,0.00011637,2]
[348555578,1736617870816,-500.0,0.00011637,2]
[348555579,1736617870825,-500.0,0.00011637,2]
[348555580,1736617870835,-537.05,0.00011637,2]
[348555581,1736617870847,-257.26003162,0.00011637,2]
[348555582,1736617870861,-500.0,0.00011637,2]
[348555583,1736617870875,-500.0,0.00011637,2]
[348555584,1736617870885,-500.0,0.00011637,2]
[348555585,1736617870894,-500.0,0.00011637,2]
[348555586,1736617870904,-500.0,0.00011637,2]
[348555587,1736617870913,-500.0,0.00011637,2]
[348555588,1736617870924,-500.0,0.00011637,2]
[348555589,1736617870934,-500.0,0.00011637,2]
[348555590,1736617870944,-500.0,0.00011637,2]
[348555591,1736617870954,-500.0,0.00011637,2]
[348555592,1736617870963,-500.0,0.00011637,2]
[348555593,1736617870972,-500.0,0.00011637,2]
[348555594,1736617870981,-500.0,0.00011637,2]
[348555595,1736617870990,-500.0,0.00011637,2]
[348555596,1736617870999,-2515.04,0.00011637,2]
[348555597,1736617871009,-500.0,0.00011637,2]
[348555598,1736617871019,-1662.92,0.00011637,2]
[348555599,1736617871029,-500.0,0.00011637,2]
[348555600,1736617871039,-500.0,0.00011637,2]
[348555601,1736617871048,-2486.48,0.00011637,2]
[348555602,1736617871059,-6263.35,0.00011637,2]
[348555603,1736617871069,-500.0,0.00011637,2]
[348555604,1736617871078,-500.0,0.00011637,2]
[348555605,1736617871087,-232.4113977,0.00011637,2]
[348555606,1736617871097,-500.0,0.00011637,2]
[348555607,1736617871106,-500.0,0.00011637,2]
[348555608,1736617871120,-1729.18,0.00011637,2]
[348555609,1736617871129,-707.85,0.00011637,2]
[348555610,1736617871139,-500.0,0.00011637,2]
[348555611,1736617871149,-1191.93,0.00011637,2]
[348555612,1736617871159,-500.0,0.00011637,2]
[348555613,1736617871168,-500.0,0.00011637,2]
[348555614,1736617871178,-500.0,0.00011637,2]
[348555615,1736617871188,-3145.91,0.00011637,2]
[348555616,1736617871198,-3203.88,0.00011637,2]
[348555617,1736617871209,-169.38658088,0.00011637,2]
[348555618,1736617871219,-360.80274522,0.00011637,2]
[348555619,1736617871228,-500.0,0.00011637,2]
[348555620,1736617871238,-500.0,0.00011637,2]
[348555621,1736617871247,-500.0,0.00011637,2]
[348555622,1736617871256,-2948.79,0.00011637,2]
[348555623,1736617871266,-500.0,0.00011637,2]
[348555624,1736617871275,-500.0,0.00011637,2]
[348555625,1736617871285,-4365.76,0.00011637,2]
[348555626,1736617871294,-500.0,0.00011637,2]
[348555627,1736617871303,-500.0,0.00011637,2]
[348555628,1736617871313,-2463.42,0.00011637,2]
[348555629,1736617871322,-1302.49,0.00011637,2]
[348555630,1736617871331,-1664.49,0.00011637,2]
[348555631,1736617871341,-500.0,0.00011637,2]
[348555632,1736617871350,-500.0,0.00011637,2]
[348555633,1736617871359,-3892.88,0.00011637,2]
[348555634,1736617871369,-558.7,0.00011637,2]
[348555635,1736617871378,-500.0,0.00011637,2]
[348555636,1736617871387,-500.0,0.00011637,2]
[348555637,1736617871397,-500.0,0.00011637,2]
[348555638,1736617871407,-500.0,0.00011637,2]
[348555639,1736617871416,-500.0,0.00011637,2]
[348555640,1736617871426,-500.0,0.00011637,2]
[348555641,1736617871436,-2250.27,0.00011637,2]
[348555642,1736617871445,-1806.59,0.00011637,2]
[348555643,1736617871455,-500.0,0.00011637,2]
[348555644,1736617871464,-500.0,0.00011637,2]
[348555645,1736617871474,-500.0,0.00011637,2]
[348555646,1736617871483,-773.32,0.00011637,2]
[348555647,1736617871492,-534.65,0.00011637,2]
[348555648,1736617871503,-500.0,0.00011637,2]
[348555649,1736617871512,-500.0,0.00011637,2]
[348555650,1736617871521,-500.0,0.00011637,2]
[348555651,1736617871530,-2195.61,0.00011637,2]
[348555652,1736617871539,-860.77,0.00011637,2]
[348555653,1736617871549,-500.0,0.00011638,2]
[348555654,1736617871558,-500.0,0.00011638,2]
[348555655,1736617871567,-500.0,0.00011638,2]
[348555656,1736617871576,-592.09,0.00011638,2]
[348555657,1736617871585,-500.0,0.00011638,2]
[348555658,1736617871594,-500.0,0.00011638,2]
[348555659,1736617871604,-1021.71,0.00011638,2]
[348555660,1736617871613,-500.0,0.00011638,2]
[348555661,1736617871622,-500.0,0.00011638,2]
[348555662,1736617871631,-500.0,0.00011638,2]
[348555663,1736617871640,-500.0,0.00011638,2]
[348555664,1736617871649,-744.91,0.00011638,2]
[348555665,1736617871657,-500.0,0.00011638,2]
[348555666,1736617871666,-500.0,0.00011638,2]
[348555667,1736617871675,-500.0,0.00011638,2]
[348555668,1736617871684,-415.05,0.00011638,2]
[348555669,1736617871693,-500.0,0.00011638,2]
[348555670,1736617871703,-500.0,0.00011638,2]
[348555671,1736617871712,-500.0,0.00011638,2]
[348555672,1736617871720,-2246.3,0.00011638,2]
[348555673,1736617871730,-500.0,0.00011638,2]
[348555674,1736617871739,-500.0,0.00011638,2]
[348555675,1736617871748,-500.0,0.00011638,2]
[348555676,1736617871757,-1001.91,0.00011638,2]
[348555677,1736617871765,-500.0,0.00011638,2]
[348555678,1736617871775,-587.01,0.00011638,2]
[348555679,1736617871784,-500.0,0.00011638,2]
[348555680,1736617871793,-605.94606402,0.00011638,2]
[348555681,1736617871802,-500.0,0.00011638,2]
[348555682,1736617871811,-877.54,0.00011638,2]
[348555683,1736617871820,-500.0,0.00011638,2]
[348555684,1736617871829,-500.0,0.00011638,2]
[348555685,1736617871839,-180.65925996,0.00011638,2]
[348555686,1736617871848,-500.0,0.00011638,2]
[348555687,1736617871858,-500.0,0.00011638,2]
[348555688,1736617871867,-500.0,0.00011638,2]
[348555689,1736617871877,-500.0,0.00011638,2]
[348555690,1736617871886,-500.0,0.00011638,2]
[348555691,1736617871896,-500.0,0.00011638,2]
[348555692,1736617871906,-1931.71,0.00011638,2]
[348555693,1736617871914,-500.0,0.00011638,2]
[348555694,1736617871924,-500.0,0.00011638,2]
[348555695,1736617871933,-500.0,0.00011638,2]
[348555696,1736617871942,-750.82,0.00011638,2]
[348555697,1736617871952,-500.0,0.00011638,2]
[348555698,1736617871961,-500.0,0.00011638,2]
[348555699,1736617871971,-500.0,0.00011638,2]
[348555700,1736617871980,-500.0,0.00011638,2]
[348555701,1736617871988,-500.0,0.00011638,2]
[348555702,1736617872153,-500.0,0.00011638,2]
[348555703,1736617872164,-500.0,0.00011638,2]
[348555704,1736617872174,-2794.28,0.00011638,2]
[348555705,1736617872183,-500.0,0.00011638,2]
[348555706,1736617872193,-500.0,0.00011638,2]
[348555707,1736617872203,-500.0,0.00011638,2]
[348555708,1736617872213,-500.0,0.00011638,2]
[348555709,1736617872222,-500.0,0.00011638,2]
[348555710,1736617872231,-500.0,0.00011638,2]
[348555711,1736617872241,-500.0,0.00011638,2]
[348555712,1736617872251,-500.0,0.00011638,2]
[348555713,1736617872260,-500.0,0.00011638,2]
[348555714,1736617872270,-500.0,0.00011638,2]
[348555715,1736617872279,-530.38,0.00011638,2]
[348555716,1736617872288,-500.0,0.00011638,2]
[348555717,1736617872297,-500.0,0.00011638,2]
[348555718,1736617872306,-1556.78,0.00011638,2]
[348555719,1736617872316,-500.0,0.00011638,2]
[348555720,1736617872325,-500.0,0.00011638,2]
[348555721,1736617872334,-500.0,0.00011638,2]
[348555722,1736617872343,-500.0,0.00011638,2]
[348555723,1736617872353,-500.0,0.00011638,2]
[348555724,1736617872362,-500.0,0.00011638,2]
[348555725,1736617872371,-171.75,0.00011638,2]
[348555726,1736617872381,-500.0,0.00011638,2]
[348555727,1736617872390,-599.44,0.00011638,2]
[348555728,1736617872399,-1105.62,0.00011638,2]
[348555729,1736617872409,-500.0,0.00011638,2]
[348555730,1736617872418,-640.7,0.00011638,2]
[348555731,1736617872431,-1707.208363,0.00011638,2]
[348555732,1736617872441,-500.0,0.00011638,2]
[348555733,1736617872450,-500.0,0.00011638,2]
[348555734,1736617872460,-520.75680678,0.00011638,2]
[348555735,1736617872469,-500.0,0.00011638,2]
[348555736,1736617872479,-500.0,0.00011638,2]
[348555737,1736617872488,-500.0,0.00011638,2]
[348555738,1736617872497,-500.0,0.00011638,2]
[348555739,1736617872506,-1824.135556,0.00011638,2]
[348555740,1736617872515,-500.0,0.00011638,2]
[348555741,1736617872525,-500.0,0.00011638,2]
[348555742,1736617872534,-159.450386,0.00011638,2]
[348555743,1736617872544,-500.0,0.00011638,2]
[348555744,1736617872553,-865.18,0.00011638,2]
[348555745,1736617872562,-500.0,0.00011638,2]
[348555746,1736617872572,-500.0,0.00011638,2]
[348555747,1736617872581,-500.0,0.00011638,2]
[348555748,1736617872590,-500.0,0.00011638,2]
[348555749,1736617872599,-500.0,0.00011638,2]
[348555750,1736617872609,-500.0,0.00011638,2]
[348555751,1736617872618,-661.65,0.00011638,2]
[348555752,1736617872627,-963.66,0.00011638,2]
[348555753,1736617872637,-500.0,0.00011638,2]
[348555754,1736617872646,-794.24,0.00011638,2]
[348555755,1736617872655,-554.94,0.00011638,2]
[348555756,1736617872665,-500.0,0.00011638,2]
[348555757,1736617872674,-236.58144357,0.00011638,2]
[348555758,1736617872683,-819.98,0.00011638,2]
[348555759,1736617872692,-500.0,0.00011638,2]
[348555760,1736617872701,-500.0,0.00011638,2]
[348555761,1736617872710,-500.0,0.00011638,2]
[348555762,1736617872720,-500.0,0.00011638,2]
[348555763,1736617872729,-500.0,0.00011638,2]
[348555764,1736617872738,-500.0,0.00011638,2]
[348555765,1736617872749,-500.0,0.00011638,2]
[348555766,1736617872758,-500.0,0.00011638,2]
[348555767,1736617872767,-500.0,0.00011638,2]
[348555768,1736617872777,-500.0,0.00011638,2]
[348555769,1736617872786,-500.0,0.00011638,2]
[348555770,1736617872796,-1013.28,0.00011638,2]
[348555771,1736617872805,-500.0,0.00011638,2]
[348555772,1736617872815,-500.0,0.00011638,2]
[348555773,1736617872825,-500.0,0.00011638,2]
[348555774,1736617872835,-500.0,0.00011638,2]
[348555775,1736617872844,-500.0,0.00011638,2]
[348555776,1736617872854,-353.8,0.00011638,2]
[348555777,1736617872863,-631.9305156,0.00011638,2]
[348555778,1736617872872,-500.0,0.00011638,2]
[348555779,1736617872882,-3506.37,0.00011638,2]
[348555780,1736617872892,-500.0,0.00011638,2]
[348555781,1736617872901,-500.0,0.00011638,2]
[348555782,1736617872911,-520.05,0.00011638,2]
[348555783,1736617872920,-500.0,0.00011638,2]
[348555784,1736617872929,-500.0,0.00011638,2]
[348555785,1736617872939,-500.0,0.00011638,2]
[348555786,1736617872948,-500.0,0.00011638,2]
[348555787,1736617872958,-500.0,0.00011638,2]
[348555788,1736617872968,-500.0,0.00011638,2]
[348555789,1736617872978,-500.0,0.00011638,2]
[348555790,1736617872987,-500.0,0.00011638,2]
[348555791,1736617872997,-500.0,0.00011638,2]
[348555792,1736617873006,-500.0,0.00011638,2]
[348555793,1736617873016,-500.0,0.00011638,2]
[348555794,1736617873026,-500.0,0.00011638,2]
[348555795,1736617873035,-500.0,0.00011638,2]
[348555796,1736617873045,-500.0,0.00011638,2]
[348555797,1736617873055,-500.0,0.00011638,2]
[348555798,1736617873066,-500.0,0.00011638,2]
[348555799,1736617873076,-531.36,0.00011638,2]
[348555800,1736617873085,-500.0,0.00011638,2]
[348555801,1736617873095,-500.0,0.00011638,2]
[348555802,1736617873104,-1027.0,0.00011638,2]
[348555803,1736617873114,-500.0,0.00011638,2]
[348555804,1736617873128,-500.0,0.00011638,2]
[348555805,1736617873137,-1025.27,0.00011638,2]
[348555806,1736617873147,-500.0,0.00011638,2]
[348555807,1736617873156,-500.0,0.00011638,2]
[348555808,1736617873167,-500.0,0.00011638,2]
[348555809,1736617873177,-500.0,0.00011638,2]
[348555810,1736617873187,-500.0,0.00011638,2]
[348555811,1736617873197,-500.0,0.00011638,2]
[348555812,1736617873208,-1076.09,0.00011638,2]
[348555813,1736617873218,-500.0,0.00011638,2]
[348555814,1736617873227,-500.0,0.00011638,2]
[348555815,1736617873236,-500.0,0.00011638,2]
[348555816,1736617873246,-500.0,0.00011638,2]
[348555817,1736617873255,-527.18,0.00011638,2]
[348555818,1736617873265,-500.0,0.00011638,2]
[348555819,1736617873274,-761.74,0.00011638,2]
[348555820,1736617873284,-500.0,0.00011638,2]
[348555821,1736617873293,-500.0,0.00011638,2]
[348555822,1736617873302,-500.0,0.00011638,2]
[348555823,1736617873312,-500.0,0.00011638,2]
[348555824,1736617873321,-500.0,0.00011638,2]
[348555825,1736617873331,-4845.51,0.00011638,2]
[348555826,1736617873340,-500.0,0.00011638,2]
[348555827,1736617873349,-622.67,0.00011638,2]
[348555828,1736617873359,-611.72,0.00011638,2]
[348555829,1736617873368,-500.0,0.00011638,2]
[348555830,1736617873378,-500.0,0.00011638,2]
[348555831,1736617873387,-500.0,0.00011638,2]
[348555832,1736617873397,-500.0,0.00011638,2]
[348555833,1736617873406,-500.0,0.00011638,2]
[348555834,1736617873416,-500.0,0.00011638,2]
[348555835,1736617873426,-2193.11,0.00011638,2]
[348555836,1736617873435,-500.0,0.00011638,2]
[348555837,1736617873444,-500.0,0.00011638,2]
[348555838,1736617873455,-500.0,0.00011638,2]
[348555839,1736617873464,-500.0,0.00011638,2]
[348555840,1736617873474,-500.0,0.00011638,2]
[348555841,1736617873483,-883.7,0.00011638,2]
[348555842,1736617873493,-500.0,0.00011638,2]
[348555843,1736617873503,-541.62,0.00011638,2]
[348555844,1736617873512,-500.0,0.00011638,2]
[348555845,1736617873521,-500.0,0.00011638,2]
[348555846,1736617873531,-584.87,0.00011638,2]
[348555847,1736617873540,-787.73,0.00011638,2]
[348555848,1736617873549,-500.0,0.00011638,2]
[348555849,1736617873558,-2678.35,0.00011638,2]
[348555850,1736617873567,-500.0,0.00011638,2]
[348555851,1736617873576,-500.0,0.00011638,2]
[348555852,1736617873586,-500.0,0.00011638,2]
[348555853,1736617873595,-721.21,0.00011638,2]
[348555854,1736617873605,-500.0,0.00011638,2]
[348555855,1736617873615,-500.0,0.00011638,2]
[348555856,1736617873624,-500.0,0.00011638,2]
[348555857,1736617873634,-1164.85,0.00011638,2]
[348555858,1736617873643,-500.0,0.00011638,2]
[348555859,1736617873651,-2484.04,0.00011638,2]
[348555860,1736617873661,-515.98214403,0.00011638,2]
[348555861,1736617873670,-500.0,0.00011638,2]
[348555862,1736617873680,-500.0,0.00011638,2]
[348555863,1736617873689,-500.0,0.00011638,2]
[348555864,1736617873698,-500.0,0.00011638,2]
[348555865,1736617873708,-500.0,0.00011638,2]
[348555866,1736617873718,-500.0,0.00011638,2]
[348555867,1736617873728,-500.0,0.00011638,2]
[348555868,1736617873737,-500.0,0.00011638,2]
[348555869,1736617873746,-1265.58,0.00011638,2]
[348555870,1736617873756,-500.0,0.00011638,2]
[348555871,1736617873765,-248.42314818,0.00011638,2]
[348555872,1736617873774,-638.57,0.00011638,2]
[348555873,1736617873783,-500.0,0.00011638,2]
[348555874,1736617873793,-500.0,0.00011638,2]
[348555875,1736617873802,-500.0,0.00011638,2]
[348555876,1736617873813,-500.0,0.00011638,2]
[348555877,1736617873823,-500.0,0.00011638,2]
[348555878,1736617873833,-1332.14,0.00011638,2]
[348555879,1736617873842,-525.35834672,0.00011638,2]
[348555880,1736617873852,-500.0,0.00011638,2]
[348555881,1736617873861,-1828.59,0.00011638,2]
[348555882,1736617873871,-500.0,0.00011638,2]
[348555883,1736617873881,-300.0,0.00011638,2]
[348555884,1736617873891,-300.0,0.00011638,2]
[348555885,1736617873901,-300.0,0.00011638,2]
[348555886,1736617873911,-300.0,0.00011639,2]
[348555887,1736617873921,-300.0,0.00011639,2]
[348555888,1736617873931,-300.0,0.00011639,2]
[348555889,1736617873941,-794.39,0.00011639,2]
[348555890,1736617873951,-1588.56,0.00011639,2]
[348555891,1736617873961,-1533.66,0.00011639,2]
[348555892,1736617873971,-1955.89,0.00011639,2]
[348555893,1736617873981,-1464.39,0.00011639,2]
[348555894,1736617873991,-500.0,0.00011639,2]
[348555895,1736617874001,-3508.34,0.00011639,2]
[348555896,1736617874010,-768.66,0.00011639,2]
[348555897,1736617874019,-1505.1,0.00011639,2]
[348555898,1736617874029,-1774.67,0.00011639,2]
[348555899,1736617874039,-947.84,0.00011639,2]
[348555900,1736617874048,-2918.92,0.00011639,2]